[Event "VII Lorca Open 2018"]
[Site "Lorca"]
[Date "2018.12.30"]
[Round "8"]
[White "Romero Romero, Sebastian"]
[Black "Tejedor Fuente, Enrique"]
[Result "0-1"]
[ECO "A03"]
[WhiteElo "2180"]
[BlackElo "2428"]
[Annotator "NA"]
[PlyCount "107"]
[EventDate "2018.12.26"]
[EventType "swiss"]
[EventCountry "ESP"]
[SourceTitle "playchess.com"]
[Source "ChessBase"]
[SourceQuality "1"]
[TimeControl "5400+30"]

1. Nf3 {[%emt 0:01:19]} c5 {[%emt 0:02:29]} 2. b3 {[%emt 0:00:42]} d5 {[%emt 0:01:01]} 3. e3 {[%emt 0:00:45]} Nc6 {[%emt 0:00:40]} 4. Bb2 {[%emt 0:00:46]} Nf6 {[%emt 0:01:59]} 5. Bb5 {[%emt 0:02:51]} Qc7 {[%emt 0:06:51]} 6. Ne5 {[%emt 0:05:57]} e6 {[%emt 0:01:03]} 7. O-O {[%emt 0:03:15]} Bd6 {[%emt 0:00:38]} 8. f4 {[%emt 0:01:01]} O-O {[%emt 0:00:39]} 9. Nxc6 {[%emt 0:18:07]} bxc6 {[%emt 0:00:05]} 10. Bxf6 {[%emt 0:00:11]} gxf6 {[%emt 0:05:28]} 11. Qh5 {[%emt 0:05:00]} Kh8 {[%emt 0:01:52]} 12. Bd3 {[%emt 0:08:54]} f5 {[%emt 0:00:04]} 13. Nc3 {[%emt 0:01:20]} f6 {[%emt 0:09:19]} 14. Rf3 {[%emt 0:03:24]} Qf7 {[%emt 0:01:55]} 15. Rh3 {[%emt 0:01:04]} Bd7 {[%emt 0:01:23]} 16. Na4 {[%emt 0:01:43]} Qe7 {[%emt 0:06:02]} 17. c4 {[%emt 0:01:39]} Rad8 {[%emt 0:02:56]} 18. Rc1 {[%emt 0:02:41]} Be8 {[%emt 0:00:40]} 19. Qd1 {[%emt 0:00:48]} Bg6 {[%emt 0:00:57]} 20. Qc2 {[%emt 0:00:04]} d4 {[%emt 0:00:33]} 21. exd4 {[%emt 0:06:25]} cxd4 {[%emt 0:13:29]} 22. Re1 {[%emt 0:00:14]} Bxf4 {[%emt 0:09:47]} 23. Bxf5 {[%emt 0:03:46]} Be3+ {[%emt 0:02:44]} 24. Rexe3 {[%emt 0:06:27]} Bxf5 {[%emt 0:00:10]} 25. Qxf5 {[%emt 0:02:40]} dxe3 {[%emt 0:00:01]} 26. Rxe3 {[%emt 0:00:12]} exf5 {[%emt 0:00:42]} 27. Rxe7 {[%emt 0:00:06]} Rxd2 {[%emt 0:00:02]} 28. Nc5 {[%emt 0:01:56]} Rxa2 {[%emt 0:03:27]} 29. Nd7 {[%emt 0:00:31]} Rd8 {[%emt 0:02:27]} 30. h3 {[%emt 0:00:20]} Kg8 {[%emt 0:02:46]} 31. Nxf6+ {[%emt 0:00:12]} Kf8 {[%emt 0:00:00]} 32. Rxh7 {[%emt 0:00:54]} Rd6 {[%emt 0:01:29]} 33. Nh5 {[%emt 0:00:49]} Rdd2 {[%emt 0:02:23]} 34. Nf4 {[%emt 0:01:35]} Rf2 {[%emt 0:00:29]} 35. Ne6+ {[%emt 0:00:06]} Ke8 {[%emt 0:00:31]} 36. Rg7 {[%emt 0:00:52]} f4 {[%emt 0:02:13]} 37. Nc7+ {[%emt 0:02:42]} Kd8 {[%emt 0:01:03]} 38. Ne6+ {[%emt 0:00:15]} Kc8 {[%emt 0:00:08]} 39. Nd4 {[%emt 0:00:05]} Rfb2 {[%emt 0:01:38]} 40. h4 {[%emt 0:09:10]} c5 {[%emt 0:00:06]} 41. Nf3 {[%emt 0:00:03]} Rxb3 {[%emt 0:00:14]} 42. h5 {[%emt 0:02:13]} Rb6 {[%emt 0:00:03]} 43. Ne5 {[%emt 0:01:49]} Rh6 {[%emt 0:00:54]} 44. Rg5 {[%emt 0:00:02]} Rh7 {[%emt 0:08:21]} 45. Nd3 {[%emt 0:00:53]} f3 46. gxf3 {[%emt 0:00:21]} Rd7 {[%emt 0:05:36]} 47. Rxc5+ {[%emt 0:01:44]} Kd8 {[%emt 0:01:13]} 48. Rd5 {[%emt 0:03:52]} Rxd5 {[%emt 0:00:32]} 49. cxd5 {[%emt 0:00:04]} Ra6 {[%emt 0:00:01]} 50. Kf2 {[%emt 0:00:52]} Rh6 {[%emt 0:00:16]} 51. Nf4 {[%emt 0:00:37]} a5 {[%emt 0:00:02]} 52. Ke3 {[%emt 0:00:57]} a4 {[%emt 0:00:02]} 53. Kd4 {[%emt 0:00:45]} a3 {[%emt 0:07:07]} 54. Nd3 {[%emt 0:02:00]} 0-1

[Event "VII Lorca Open 2018"]
[Site "Lorca"]
[Date "2018.12.30"]
[Round "8"]
[White "Manu David Suthandram R"]
[Black "Domingo Nunez, Ruben"]
[Result "1-0"]
[ECO "B40"]
[WhiteElo "2153"]
[BlackElo "2383"]
[Annotator "NA"]
[PlyCount "89"]
[EventDate "2018.12.26"]
[EventType "swiss"]
[EventCountry "ESP"]
[SourceTitle "playchess.com"]
[Source "ChessBase"]
[SourceQuality "1"]
[TimeControl "5400+30"]

1. e4 {[%emt 0:00:15]} c5 {[%emt 0:00:00]} 2. Nf3 {[%emt 0:00:32]} e6 {[%emt 0:00:04]} 3. g3 {[%emt 0:01:20]} Nc6 {[%emt 0:02:00]} 4. Bg2 {[%emt 0:00:13]} Nf6 {[%emt 0:00:54]} 5. Qe2 {[%emt 0:00:31]} e5 {[%emt 0:01:32]} 6. O-O {[%emt 0:00:23]} d6 {[%emt 0:04:59]} 7. h3 {[%emt 0:00:08]} Be7 {[%emt 0:02:09]} 8. c3 {[%emt 0:00:10]} O-O {[%emt 0:03:10]} 9. Rd1 {[%emt 0:00:49]} Qb6 {[%emt 0:01:28]} 10. Na3 {[%emt 0:04:33]} Re8 {[%emt 0:03:58]} 11. d3 {[%emt 0:06:27]} h6 {[%emt 0:04:08]} 12. Nc4 {[%emt 0:00:59]} Qa6 {[%emt 0:01:13]} 13. Ne3 {[%emt 0:00:10]} Be6 {[%emt 0:02:51]} 14. Nh4 {[%emt 0:00:11]} Na5 {[%emt 0:13:35]} 15. Bd2 {[%emt 0:03:36]} Rad8 {[%emt 0:02:46]} 16. Nhf5 {[%emt 0:10:24]} Bf8 {[%emt 0:06:42]} 17. Qf3 {[%emt 0:00:03]} Nh7 {[%emt 0:08:13]} 18. Nd5 {[%emt 0:00:08]} Bxd5 {[%emt 0:08:11]} 19. exd5 {[%emt 0:00:42]} c4 {[%emt 0:00:01]} 20. b4 {[%emt 0:13:24]} cxd3 {[%emt 0:09:45]} 21. bxa5 {[%emt 0:00:31]} e4 {[%emt 0:00:00]} 22. Qe3 {[%emt 0:02:14]} Rc8 {[%emt 0:07:14]} 23. Bxe4 {[%emt 0:04:02]} Ng5 {[%emt 0:05:30]} 24. f3 {[%emt 0:02:04]} g6 {[%emt 0:01:45]} 25. Nd4 {[%emt 0:00:10]} f5 {[%emt 0:00:00]} 26. Bxd3 {[%emt 0:00:07]} Qxa5 {[%emt 0:00:02]} 27. c4 {[%emt 0:00:06]} Rxe3 {[%emt 0:07:04]} 28. Bxa5 {[%emt 0:00:20]} Bg7 {[%emt 0:00:01]} 29. Bc3 {[%emt 0:03:12]} Rxc4 {[%emt 0:00:33]} 30. Bxc4 {[%emt 0:02:17]} Rxc3 {[%emt 0:00:03]} 31. Be2 {[%emt 0:00:09]} f4 {[%emt 0:00:21]} 32. h4 {[%emt 0:00:54]} Nh7 {[%emt 0:01:14]} 33. Ne6 {[%emt 0:01:21]} Be5 {[%emt 0:00:54]} 34. Rac1 {[%emt 0:00:06]} Ra3 {[%emt 0:02:31]} 35. Rc8+ {[%emt 0:00:15]} Kf7 {[%emt 0:00:02]} 36. Rc7+ {[%emt 0:00:08]} Kg8 {[%emt 0:00:04]} 37. gxf4 {[%emt 0:00:10]} Bf6 {[%emt 0:00:00]} 38. h5 {[%emt 0:00:14]} gxh5 {[%emt 0:02:53]} 39. Bd3 {[%emt 0:01:21]} Nf8 {[%emt 0:00:03]} 40. Nxf8 {[%emt 0:00:21]} Bd4+ {[%emt 0:00:02]} 41. Kf1 {[%emt 0:01:32]} Kxf8 {[%emt 0:00:02]} 42. Be4 {[%emt 0:02:37]} Bb6 {[%emt 0:00:24]} 43. Rxb7 {[%emt 0:00:36]} Rxa2 {[%emt 0:00:06]} 44. Rc1 {[%emt 0:01:03]} Rf2+ {[%emt 0:00:42]} 45. Ke1 {[%emt 0:00:11]} 1-0

[Event "VII Lorca Open 2018"]
[Site "Lorca"]
[Date "2018.12.31"]
[Round "9"]
[White "Gomez Ledo, Roberto Carlos"]
[Black "Serarols Mabras, Bernat"]
[Result "1/2-1/2"]
[WhiteElo "2448"]
[BlackElo "2371"]
[Annotator "NA"]
[PlyCount "32"]
[EventDate "2018.12.26"]
[EventType "swiss"]
[EventCountry "ESP"]
[SourceTitle "playchess.com"]
[Source "ChessBase"]
[SourceQuality "1"]
[TimeControl "5400+30"]

1. d4 {[%emt 0:00:00]} d5 {[%emt 0:00:02]} 2. Bf4 {[%emt 0:00:00]} c5 {[%emt 0:00:18]} 3. c3 {[%emt 0:00:40]} Nc6 {[%emt 0:00:32]} 4. e3 {[%emt 0:01:43]} Nf6 {[%emt 0:00:27]} 5. Nd2 {[%emt 0:00:27]} Bf5 {[%emt 0:00:07]} 6. Ngf3 {[%emt 0:00:04]} e6 {[%emt 0:00:11]} 7. Nh4 {[%emt 0:02:15]} Be4 {[%emt 0:02:10]} 8. Nhf3 {[%emt 0:07:56]} Bf5 {[%emt 0:00:11]} 9. Qb3 {[%emt 0:05:06] LiveBook: 46 Games. D00: 1 d4 d5: Unusual lines} {Predecessor:} Qc8 $146 10. Nh4 Bg6 11. h3 Be7 12. Nxg6 hxg6 13. Be2 O-O 14. O-O Qd7 15. dxc5 Bxc5 16. Rad1 Qe7 {½-½ (30) Savchenko,B (2613)-Alekseev,E (2638) Khanty-Mansiysk 2016} 1/2-1/2

[Event "VII Lorca Open 2018"]
[Site "Lorca"]
[Date "2018.12.31"]
[Round "9"]
[White "Arjun Kalyan"]
[Black "Manu David Suthandram R"]
[Result "1-0"]
[ECO "B33"]
[WhiteElo "2406"]
[BlackElo "2153"]
[Annotator "NA"]
[PlyCount "22"]
[EventDate "2018.12.26"]
[EventType "swiss"]
[EventCountry "ESP"]
[SourceTitle "playchess.com"]
[Source "ChessBase"]
[SourceQuality "1"]
[TimeControl "5400+30"]

1. e4 {[%emt 0:00:00]} c5 {[%emt 0:00:15]} 2. Nf3 {[%emt 0:00:00]} Nc6 {[%emt 0:00:06]} 3. d4 {[%emt 0:00:00]} cxd4 {[%emt 0:00:04]} 4. Nxd4 {[%emt 0:00:00]} e5 {[%emt 0:00:05]} 5. Nb5 {[%emt 0:00:00]} d6 {[%emt 0:00:05]} 6. N1c3 {[%emt 0:00:00]} a6 {[%emt 0:00:04]} 7. Na3 {[%emt 0:00:06]} Be6 {[%emt 0:00:04]} 8. Nc4 {[%emt 0:00:24]} Nf6 {[%emt 0:00:07]} 9. Bg5 {[%emt 0:02:21]} Nd4 {[%emt 0:01:21]} 10. Nd5 {[%emt 0:01:24]} Bxd5 {[%emt 0:08:28]} 11. exd5 {[%emt 0:00:05]} b5 {[%emt 0:05:56]} 1-0

[Event "VII Lorca Open 2018"]
[Site "Lorca"]
[Date "2018.12.31"]
[Round "9"]
[White "Domingo Nunez, Alejandro"]
[Black "Luch, Michal"]
[Result "0-1"]
[ECO "C00"]
[WhiteElo "2404"]
[BlackElo "2360"]
[Annotator "NA"]
[PlyCount "20"]
[EventDate "2018.12.26"]
[EventType "swiss"]
[EventCountry "ESP"]
[SourceTitle "playchess.com"]
[Source "ChessBase"]
[SourceQuality "1"]
[TimeControl "5400+30"]

1. e4 {[%emt 0:00:00]} c5 {[%emt 0:00:00]} 2. Nf3 {[%emt 0:00:00]} e6 {[%emt 0:00:00]} 3. g3 {[%emt 0:00:04]} Nc6 {[%emt 0:02:28]} 4. Bg2 {[%emt 0:00:28]} Nf6 {[%emt 0:00:47]} 5. Qe2 {[%emt 0:00:49]} d6 {[%emt 0:00:33]} 6. O-O {[%emt 0:00:08]} Be7 {[%emt 0:00:05]} 7. c3 {[%emt 0:01:34]} O-O {[%emt 0:00:17]} 8. Rd1 {[%emt 0:00:51]} Qb6 {[%emt 1:29:50]} 9. d3 Qa6 10. Nbd2 b5 {[%emt 0:00:00]} 0-1

[Event "VII Lorca Open 2018"]
[Site "Lorca"]
[Date "2018.12.31"]
[Round "9"]
[White "Medarde Santiago, Luis Marcos"]
[Black "Sreeshwan Maralakshikari"]
[Result "0-1"]
[ECO "B19"]
[WhiteElo "2386"]
[BlackElo "2244"]
[Annotator "NA"]
[PlyCount "34"]
[EventDate "2018.12.26"]
[EventType "swiss"]
[EventCountry "ESP"]
[SourceTitle "playchess.com"]
[Source "ChessBase"]
[SourceQuality "1"]
[TimeControl "5400+30"]

1. e4 {[%emt 0:01:03]} c6 {[%emt 0:00:00]} 2. d4 {[%emt 0:00:13]} d5 {[%emt 0:00:00]} 3. Nc3 {[%emt 0:00:47]} dxe4 {[%emt 0:00:00]} 4. Nxe4 {[%emt 0:00:03]} Bf5 {[%emt 0:00:03]} 5. Ng3 {[%emt 0:00:09]} Bg6 {[%emt 0:00:04]} 6. h4 {[%emt 0:00:28]} h6 {[%emt 0:00:03]} 7. Nf3 {[%emt 0:00:19]} Nf6 {[%emt 0:00:02]} 8. Ne5 {[%emt 0:00:34]} Bh7 {[%emt 0:00:04]} 9. Bc4 {[%emt 0:00:16]} e6 {[%emt 0:00:08]} 10. Qe2 {[%emt 0:00:08]} Nd5 {[%emt 0:00:04]} 11. Qf3 {[%emt 0:00:05]} Qe7 {[%emt 0:03:12]} 12. Bd2 {[%emt 0:05:08]} Nd7 {[%emt 0:00:16]} 13. O-O-O {[%emt 0:00:13]} Nxe5 {[%emt 0:00:21]} 14. dxe5 {[%emt 0:00:02]} Qc7 {[%emt 0:00:23]} 15. Rhe1 {[%emt 0:00:45]} O-O-O {[%emt 0:01:44]} 16. Ne4 {[%emt 0:02:17]} Bxe4 {[%emt 0:01:19]} 17. Qxe4 {[%emt 0:01:36]} Bc5 {[%emt 0:00:08]} 0-1

[Event "VII Lorca Open 2018"]
[Site "Lorca"]
[Date "2018.12.31"]
[Round "9"]
[White "Low, Zhen Yu Cyrus"]
[Black "Martin Duque, Jesus"]
[Result "0-1"]
[ECO "B48"]
[WhiteElo "2384"]
[BlackElo "2354"]
[Annotator "NA"]
[PlyCount "30"]
[EventDate "2018.12.26"]
[EventType "swiss"]
[EventCountry "ESP"]
[SourceTitle "playchess.com"]
[Source "ChessBase"]
[SourceQuality "1"]
[TimeControl "5400+30"]

1. e4 {[%emt 0:00:00]} c5 {[%emt 0:03:36]} 2. Nf3 {[%emt 0:00:00]} e6 {[%emt 0:00:03]} 3. d4 {[%emt 0:00:00]} cxd4 {[%emt 0:00:02]} 4. Nxd4 {[%emt 0:00:03]} Nc6 {[%emt 0:00:01]} 5. Nc3 {[%emt 0:00:10]} Qc7 {[%emt 0:00:02]} 6. Be3 {[%emt 0:00:09]} a6 {[%emt 0:00:01]} 7. Qf3 {[%emt 0:00:10]} Nf6 {[%emt 0:00:04]} 8. O-O-O {[%emt 0:00:07]} Ne5 {[%emt 0:00:05]} 9. Qg3 {[%emt 0:00:07]} b5 {[%emt 0:00:05]} 10. f4 {[%emt 0:00:06]} Neg4 {[%emt 0:00:08]} 11. Bg1 {[%emt 0:00:07]} b4 {[%emt 0:00:12]} 12. Na4 {[%emt 0:00:05]} Nh6 {[%emt 0:00:15]} 13. e5 {[%emt 0:00:35]} Nd5 {[%emt 0:00:06]} 14. Kb1 {[%emt 0:07:24]} Bb7 {[%emt 0:02:40]} 15. Bd3 {[%emt 0:01:03]} g6 {[%emt 0:02:09]} 0-1

[Event "VII Lorca Open 2018"]
[Site "Lorca"]
[Date "2018.12.31"]
[Round "9"]
[White "Guerra Rivera, Salvador"]
[Black "Merario Alarcon, Andres"]
[Result "1/2-1/2"]
[ECO "B03"]
[WhiteElo "2343"]
[BlackElo "2404"]
[Annotator "NA"]
[PlyCount "27"]
[EventDate "2018.12.26"]
[EventType "swiss"]
[EventCountry "ESP"]
[SourceTitle "playchess.com"]
[Source "ChessBase"]
[SourceQuality "1"]
[TimeControl "5400+30"]

1. e4 {[%emt 0:00:00]} Nf6 {[%emt 0:00:00]} 2. e5 {[%emt 0:00:04]} Nd5 {[%emt 0:00:00]} 3. c4 {[%emt 0:00:26]} Nb6 {[%emt 0:00:00]} 4. d4 {[%emt 0:00:07]} d6 {[%emt 0:00:16]} 5. exd6 {[%emt 0:00:10]} cxd6 {[%emt 0:00:10]} 6. Nc3 {[%emt 0:00:19]} g6 {[%emt 0:00:23]} 7. a4 {[%emt 0:00:12]} Bg7 {[%emt 0:01:08]} 8. a5 {[%emt 0:00:09]} N6d7 {[%emt 0:00:03]} 9. Ra3 {[%emt 0:00:37]} O-O {[%emt 0:01:43]} 10. Nf3 {[%emt 0:00:23]} Nf6 {[%emt 0:00:06]} 11. Be2 {[%emt 0:02:09]} d5 {[%emt 0:00:45]} 12. Ne5 {[%emt 0:04:04]} Nc6 {[%emt 0:00:22]} 13. Nxc6 {[%emt 0:02:37]} bxc6 {[%emt 0:00:02]} 14. O-O {[%emt 0:00:44]} 1/2-1/2

[Event "VII Lorca Open 2018"]
[Site "Lorca"]
[Date "2018.12.30"]
[Round "9"]
[White "Terbe, Julianna"]
[Black "Ramiro Ovejero, Juan Luis"]
[Result "1/2-1/2"]
[ECO "D02"]
[WhiteElo "2272"]
[BlackElo "2358"]
[Annotator "NA"]
[PlyCount "34"]
[EventDate "2018.12.26"]
[EventType "swiss"]
[EventCountry "ESP"]
[SourceTitle "playchess.com"]
[Source "ChessBase"]
[SourceQuality "1"]
[TimeControl "5400+30"]

1. d4 {[%emt 0:00:48]} d5 {[%emt 0:10:12]} 2. Bf4 {[%emt 0:00:30]} Nf6 {[%emt 0:00:30]} 3. e3 {[%emt 0:00:30]} e6 {[%emt 0:00:30]} 4. Nf3 {[%emt 0:00:30]} Bd6 {[%emt 0:00:30]} 5. Bg3 {[%emt 0:00:30]} c5 {[%emt 0:00:30]} 6. c3 {[%emt 0:00:30]} O-O {[%emt 0:00:30]} 7. Nbd2 {[%emt 0:00:30]} Nc6 {[%emt 0:00:30]} 8. Bb5 {[%emt 0:00:30]} Ne7 {[%emt 0:00:30]} 9. Bd3 {[%emt 0:00:30]} cxd4 {[%emt 0:00:30]} 10. exd4 {[%emt 0:00:30]} Nf5 {[%emt 0:00:30]} 11. Bxd6 {[%emt 0:00:30]} Nxd6 {[%emt 0:00:30]} 12. a4 {[%emt 0:00:30]} a5 {[%emt 0:00:30]} 13. O-O {[%emt 0:00:30]} h6 {[%emt 0:00:30]} 14. Qe2 {[%emt 0:00:30]} Bd7 {[%emt 0:00:30]} 15. Ne5 {[%emt 0:00:30]} Qc8 {[%emt 0:00:30]} 16. f4 {[%emt 0:00:30]} Nfe4 {[%emt 0:00:30]} 17. Bxe4 {[%emt 0:00:30]} dxe4 {[%emt 0:00:30]} 1/2-1/2

[Event "VII Lorca Open 2018"]
[Site "Lorca"]
[Date "2018.12.30"]
[Round "9"]
[White "Ajay Karthikeyan"]
[Black "Sabuk, Piotr"]
[Result "1/2-1/2"]
[ECO "D02"]
[WhiteElo "2143"]
[BlackElo "2391"]
[Annotator "NA"]
[PlyCount "29"]
[EventDate "2018.12.26"]
[EventType "swiss"]
[EventCountry "ESP"]
[SourceTitle "playchess.com"]
[Source "ChessBase"]
[SourceQuality "1"]
[TimeControl "5400+30"]

1. d4 {[%emt 0:11:18]} Nf6 2. Bf4 {[%emt 0:00:30]} d5 3. e3 {[%emt 0:00:30]} e6 4. Nf3 {[%emt 0:00:30]} c5 5. c3 {[%emt 0:00:30]} Nc6 6. Nbd2 {[%emt 0:00:30]} cxd4 7. exd4 {[%emt 0:00:30]} Nh5 8. Be3 {[%emt 0:00:30]} Bd6 9. Ne5 {[%emt 0:00:30]} g6 10. Bb5 {[%emt 0:00:30]} O-O 11. Bxc6 {[%emt 0:00:30]} bxc6 12. O-O {[%emt 0:00:30]} f6 13. Nxc6 {[%emt 0:00:30]} Qc7 14. Nb4 {[%emt 0:00:30]} Bxh2+ 15. Kh1 {[%emt 0:00:30]} 1/2-1/2